[Event "3rd FIDE WCCC Rapid U10 2019"]
[Site "Minsk"]
[Date "2019.08.17"]
[Round "9.6"]
[White "Stasenko, Andrey"]
[Black "Morkunas, Gustas"]
[Result "1/2-1/2"]
[ECO "C49"]
[WhiteElo "1207"]
[BlackElo "1400"]
[Annotator "NA"]
[PlyCount "200"]
[EventDate "2019.08.16"]
[EventType "swiss"]
[EventCountry "BLR"]
[SourceTitle "playchess.com"]
[Source "ChessBase"]
[SourceQuality "1"]
[TimeControl "600+5"]

1. e4 {[%emt 0:00:00]} e5 {[%emt 0:00:00]} 2. Nf3 {[%emt 0:00:00]} Nc6 {[%emt 0:00:00]} 3. Nc3 {[%emt 0:00:01]} Nf6 {[%emt 0:00:00]} 4. Bb5 {[%emt 0:00:01]} Bb4 {[%emt 0:00:00]} 5. O-O {[%emt 0:00:02]} d6 {[%emt 0:00:13]} 6. d3 {[%emt 0:00:01]} Bxc3 {[%emt 0:00:02]} 7. bxc3 {[%emt 0:00:01]} O-O {[%emt 0:00:03]} 8. Bg5 {[%emt 0:00:10]} h6 {[%emt 0:00:01]} 9. Bh4 {[%emt 0:00:01]} Bg4 {[%emt 0:00:13]} 10. h3 {[%emt 0:00:01]} Bh5 {[%emt 0:00:01]} 11. Re1 {[%emt 0:00:04]} a6 {[%emt 0:00:10]} 12. Ba4 {[%emt 0:00:01]} Qe7 {[%emt 0:00:30]} 13. Rb1 {[%emt 0:00:03]} b5 {[%emt 0:00:01]} 14. Bb3 {[%emt 0:00:02]} Na5 {[%emt 0:00:01]} 15. Qe2 {[%emt 0:00:05]} Nxb3 16. cxb3 {[%emt 0:00:04]} Qe6 {[%emt 0:00:26]} 17. Qe3 {[%emt 0:00:05]} Nd7 {[%emt 0:00:05]} 18. d4 {[%emt 0:00:07]} Rfe8 {[%emt 0:00:12]} 19. d5 {[%emt 0:00:20]} Qg6 {[%emt 0:00:13]} 20. c4 {[%emt 0:00:38]} Bxf3 {[%emt 0:00:07]} 21. Qxf3 {[%emt 0:00:03]} b4 {[%emt 0:00:24]} 22. Rbc1 {[%emt 0:00:16]} Nc5 {[%emt 0:00:04]} 23. Qe3 {[%emt 0:00:15]} f5 {[%emt 0:00:49]} 24. f3 f4 {[%emt 0:00:05]} 25. Qe2 {[%emt 0:00:07]} Qf7 {[%emt 0:00:22]} 26. Bf2 Qe7 {[%emt 0:00:38]} 27. Bxc5 {[%emt 0:00:09]} dxc5 {[%emt 0:00:01]} 28. Qf2 {[%emt 0:00:07]} Qd6 {[%emt 0:00:03]} 29. Qb2 {[%emt 0:00:06]} a5 {[%emt 0:00:05]} 30. Rcd1 {[%emt 0:00:20]} a4 {[%emt 0:00:58]} 31. Ra1 {[%emt 0:00:14]} a3 {[%emt 0:00:09]} 32. Qf2 {[%emt 0:00:02]} Rf8 {[%emt 0:00:02]} 33. Rad1 {[%emt 0:00:02]} Rf6 {[%emt 0:00:07]} 34. Kf1 {[%emt 0:00:18]} Rg6 {[%emt 0:00:24]} 35. Ke2 {[%emt 0:00:02]} Rg3 {[%emt 0:00:06]} 36. h4 {[%emt 0:00:45]} Qg6 {[%emt 0:00:17]} 37. Rg1 {[%emt 0:00:02]} Qd6 {[%emt 0:00:16]} 38. Rh1 {[%emt 0:00:09]} h5 {[%emt 0:00:27]} 39. Rh2 {[%emt 0:00:11]} Rf8 {[%emt 0:00:03]} 40. Kf1 {[%emt 0:00:17]} Rf6 {[%emt 0:00:06]} 41. Qg1 {[%emt 0:00:05]} Rfg6 {[%emt 0:00:05]} 42. Qh1 {[%emt 0:00:07]} Qe7 {[%emt 0:00:36]} 43. Rh3 {[%emt 0:00:35]} Qf6 {[%emt 0:01:01]} 44. Rxg3 {[%emt 0:00:09]} Rxg3 {[%emt 0:00:31]} 45. Kf2 {[%emt 0:00:03]} Qd6 {[%emt 0:00:06]} 46. Qg1 {[%emt 0:00:20]} Qf6 {[%emt 0:00:07]} 47. Qh2 {[%emt 0:00:05]} Qd6 {[%emt 0:00:03]} 48. Rh1 {[%emt 0:00:02]} Qg6 {[%emt 0:00:29]} 49. Qg1 {[%emt 0:00:09]} Qf6 {[%emt 0:00:06]} 50. Kf1 {[%emt 0:00:16]} Qd6 {[%emt 0:00:26]} 51. Rh2 {[%emt 0:00:02]} Qe7 {[%emt 0:00:16]} 52. Qh1 {[%emt 0:00:07]} Qd7 {[%emt 0:00:07]} 53. Kf2 {[%emt 0:00:17]} Qc8 {[%emt 0:00:13]} 54. Qa1 {[%emt 0:00:03]} Qe8 {[%emt 0:00:02]} 55. Qh1 {[%emt 0:00:06]} Qd7 {[%emt 0:00:02]} 56. Qg1 {[%emt 0:00:01]} Qe7 {[%emt 0:00:05]} 57. Kf1 {[%emt 0:00:07]} Qd6 {[%emt 0:00:04]} 58. Kf2 {[%emt 0:00:07]} Qe7 {[%emt 0:00:01]} 59. Qh1 {[%emt 0:00:03]} Qd7 {[%emt 0:00:01]} 60. Qd1 {[%emt 0:00:10]} Qd6 {[%emt 0:00:01]} 61. Qh1 {[%emt 0:00:16]} Qd7 {[%emt 0:00:01]} 62. Qg1 {[%emt 0:00:01]} Qe7 {[%emt 0:00:06]} 63. Kf1 {[%emt 0:00:03]} Qd6 {[%emt 0:00:02]} 64. Qh1 {[%emt 0:00:04]} Qd7 {[%emt 0:00:02]} 65. Kf2 {[%emt 0:00:02]} Qc8 {[%emt 0:00:01]} 66. Qd1 {[%emt 0:00:11]} Qd7 {[%emt 0:00:04]} 67. Qd2 {[%emt 0:00:02]} Qd6 {[%emt 0:00:02]} 68. Qe2 {[%emt 0:00:02]} Qd7 {[%emt 0:00:02]} 69. Qf1 {[%emt 0:00:06]} Qe7 {[%emt 0:00:03]} 70. Qg1 {[%emt 0:00:04]} Qd6 {[%emt 0:00:02]} 71. Qh1 {[%emt 0:00:03]} Qd7 {[%emt 0:00:01]} 72. Qa1 {[%emt 0:00:08]} Qd6 {[%emt 0:00:02]} 73. Rh1 {[%emt 0:00:02]} Kf7 {[%emt 0:00:08]} 74. Qd1 {[%emt 0:00:10]} Kg8 {[%emt 0:00:12]} 75. Qg1 {[%emt 0:00:21]} Qg6 {[%emt 0:00:11]} 76. Rh2 {[%emt 0:00:05]} Qd6 {[%emt 0:00:03]} 77. Rh3 {[%emt 0:00:18]} Qg6 {[%emt 0:00:06]} 78. Qh2 {[%emt 0:00:08]} Rxh3 {[%emt 0:01:03]} 79. Qxh3 {[%emt 0:01:31]} Qe8 {[%emt 0:00:13]} 80. Qf5 {[%emt 0:00:08]} g6 {[%emt 0:00:23]} 81. Qf6 {[%emt 0:00:09]} Kh7 {[%emt 0:00:05]} 82. Qg5 {[%emt 0:00:19]} Kg7 {[%emt 0:00:01]} 83. g3 {[%emt 0:00:01]} fxg3+ {[%emt 0:00:09]} 84. Kxg3 {[%emt 0:00:01]} Kf7 {[%emt 0:00:40]} 85. f4 {[%emt 0:00:13]} exf4+ {[%emt 0:00:07]} 86. Kxf4 {[%emt 0:00:01]} Qd7 {[%emt 0:00:10]} 87. e5 {[%emt 0:00:08]} Kg7 {[%emt 0:00:18]} 88. Qf6+ {[%emt 0:00:01]} Kh7 {[%emt 0:00:02]} 89. Qg5 {[%emt 0:00:24]} Qf7+ {[%emt 0:00:02]} 90. Qf6 {[%emt 0:00:03]} Qd7 {[%emt 0:00:03]} 91. e6 {[%emt 0:00:01]} Qd6+ {[%emt 0:00:01]} 92. Qe5 {[%emt 0:00:05]} Qe7 {[%emt 0:00:03]} 93. Kg3 {[%emt 0:00:07]} Kg8 {[%emt 0:00:21]} 94. Qf4 {[%emt 0:00:10]} Kg7 {[%emt 0:00:10]} 95. Qg5 {[%emt 0:00:05]} Qxg5+ {[%emt 0:00:13]} 96. hxg5 {[%emt 0:00:01]} Kf8 {[%emt 0:00:01]} 97. Kf4 {[%emt 0:00:03]} Ke7 {[%emt 0:00:01]} 98. Ke5 {[%emt 0:00:08]} h4 {[%emt 0:00:15]} 99. Kf4 {[%emt 0:00:02]} c6 {[%emt 0:00:04]} 100. dxc6 {[%emt 0:00:07]} Kxe6 {[%emt 0:00:01]} 1/2-1/2